fUST/lending_fUST_20241014
["ID","MTS","AMOUNT","RATE_DAILY","PERIOD"]
[340250797,1728918659698,-500.0,0.00041917,30]
[340250798,1728918659707,-500.0,0.00041917,30]
[340250799,1728918659717,-500.0,0.00041917,30]
[340250800,1728918659727,-151.0,0.00041917,120]
[340250801,1728918659738,-604.1,0.00041917,30]
[340250802,1728918659747,-500.0,0.00041917,30]
[340250803,1728918659756,-500.0,0.00041917,30]
[340250804,1728918659766,-151.0,0.00041917,120]
[340250805,1728918659776,-708.07,0.00041917,30]
[340250806,1728918659786,-528.00866818,0.00041917,30]
[340250807,1728918659796,-500.0,0.00041917,30]
[340250808,1728918659878,-500.0,0.00041917,30]
[340250809,1728918659888,-1192.97,0.00041917,30]
[340250810,1728918659897,-516.84433976,0.00041917,30]
[340250811,1728918659906,-500.0,0.00041917,30]
[340250812,1728918659915,-500.0,0.00041917,30]
[340250813,1728918659926,-509.85,0.00041917,30]
[340250814,1728918659935,-500.0,0.00041917,30]
[340250815,1728918659944,-786.91,0.00041917,30]
[340250816,1728918659954,-554.14028047,0.00041917,30]
[340250817,1728918659963,-500.0,0.00041917,30]
[340250818,1728918659974,-500.0,0.00041917,30]
[340250819,1728918659983,-500.0,0.00041917,30]
[340250820,1728918659993,-192.07819,0.00041917,120]
[340250821,1728918660002,-192.078195,0.00041917,120]
[340250822,1728918660012,-180.900687,0.00041917,120]
[340250823,1728918660023,-500.0,0.00041917,30]
[340250824,1728918660033,-500.0,0.00041917,30]
[340250825,1728918660044,-500.0,0.00041917,30]
[340250826,1728918660054,-180.900693,0.00041917,120]
[340250827,1728918660067,-342.70729661,0.00041917,30]
[340250828,1728918660077,-500.0,0.00041917,30]
[340250829,1728918660087,-742.44,0.00041917,30]
[340250830,1728918660097,-500.0,0.00041917,30]
[340250831,1728918660108,-351.89677362,0.00041917,30]
[340250832,1728918660118,-500.0,0.00041917,30]
[340250833,1728918660128,-500.0,0.00041917,30]
[340250834,1728918660139,-537.5390554,0.00041917,30]
[340250835,1728918660149,-500.0,0.00041917,30]
[340250836,1728918660159,-500.0,0.00041917,30]
[340250837,1728918660168,-715.35,0.00041917,30]
[340250838,1728918660179,-464.16842809,0.00041917,30]
[340250839,1728918660189,-500.0,0.00041917,30]
[340250840,1728918660199,-500.0,0.00041917,30]
[340250841,1728918660210,-512.19,0.00041917,30]
[340250842,1728918660220,-500.0,0.00041917,30]
[340250843,1728918660230,-500.0,0.00041917,30]
[340250844,1728918660240,-542.03,0.00041917,30]
[340250845,1728918660250,-1415.429102,0.00041917,120]
[340250846,1728918660261,-295.69147527,0.00041917,30]
[340250847,1728918660271,-734.61,0.00041917,30]
[340250848,1728918660282,-1415.42909684,0.00041917,120]
[340250849,1728918660292,-500.0,0.00041917,30]
[340250850,1728918660302,-1685.105336,0.00041917,60]
[340250851,1728918660312,-500.0,0.00041917,30]
[340250852,1728918660322,-524.0015512,0.00041917,30]
[340250853,1728918660332,-500.0,0.00041917,30]
[340250854,1728918660342,-1685.105338,0.00041917,60]
[340250855,1728918660351,-500.0,0.00041917,30]
[340250856,1728918660361,-567.27211035,0.00041917,30]
[340250857,1728918660371,-528.39,0.00041917,30]
[340250858,1728918660381,-606.71,0.00041917,30]
[340250859,1728918660390,-500.0,0.00041917,30]
[340250860,1728918660400,-500.0,0.00041917,30]
[340250861,1728918660410,-500.0,0.00041917,30]
[340250862,1728918660419,-500.0,0.00041917,30]
[340250863,1728918660430,-500.0,0.00041917,30]
[340250864,1728918660440,-500.0,0.00041917,30]
[340250865,1728918660450,-500.0,0.00041917,30]
[340250866,1728918660460,-500.0,0.00041917,30]
[340250867,1728918660471,-500.0,0.00041917,30]
[340250868,1728918660482,-151.0,0.00041917,120]
[340250869,1728918660492,-500.0,0.00041917,30]
[340250870,1728918660505,-500.0,0.00041917,30]
[340250871,1728918660515,-500.0,0.00041917,30]
[340250872,1728918660525,-197.495595,0.00041917,30]
[340250873,1728918660535,-500.0,0.00041917,30]
[340250874,1728918660546,-205.660718,0.00041917,120]
[340250875,1728918660557,-500.0,0.00041917,30]
[340250876,1728918660569,-500.0,0.00041917,30]
[340250877,1728918660581,-684.06,0.00041917,30]
[340250878,1728918660592,-500.0,0.00041917,30]
[340250879,1728918660602,-205.660718,0.00041917,120]
[340250880,1728918660612,-500.0,0.00041973,10]
[340250881,1728918660622,-500.51003599,0.00041973,10]
[340250882,1728918660634,-501.23625459,0.00041973,10]
[340250883,1728918660646,-150.0,0.00041973,10]
[340250884,1728918660657,-150.0,0.00041973,7]
[340250885,1728918660668,-225.195098,0.00041973,120]
[340250886,1728918660680,-5000.0,0.00042,42]
[340250887,1728918660690,-1000.0,0.00042,10]
[340250888,1728918660699,-1005.97,0.00042,30]
[340250889,1728918660710,-1101.96,0.00042,30]
[340250890,1728918660720,-316.45,0.00042,30]
[340250891,1728918660729,-151.0,0.00042,120]
[340250892,1728918660739,-205.660718,0.00042,120]
[340250893,1728918660749,-205.660718,0.00042,120]
[340250894,1728918660758,-156.1,0.00042043,31]
[340250895,1728918660767,-150.0,0.00042125,120]
[340250896,1728918660777,-250.091778,0.00042164,30]
[340250897,1728918660786,-153.0,0.00042164,30]
[340250898,1728918660796,-153.0,0.00042164,30]
[340250899,1728918660805,-153.0,0.00042164,30]
[340250900,1728918660814,-24710.35235832,0.00042191,31]
[340250901,1728918660824,-500.0,0.00042191,30]
[340250902,1728918660833,-500.0,0.00042191,30]
[340250903,1728918660843,-500.0,0.00042191,30]
[340250904,1728918660853,-604.97,0.00042191,30]
[340250905,1728918660863,-303.35841777,0.00042191,30]
[340250906,1728918660872,-500.0,0.00042191,30]
[340250907,1728918660882,-500.0,0.00042191,30]
[340250908,1728918660891,-518.77,0.00042191,30]
[340250909,1728918660901,-598.59,0.00042191,30]
[340250910,1728918660910,-500.0,0.00042191,30]
[340250911,1728918660919,-578.23,0.00042191,30]
[340250912,1728918660930,-500.0,0.00042191,30]
[340250913,1728918660940,-500.0,0.00042191,30]
[340250914,1728918660950,-500.0,0.00042191,30]
[340250915,1728918660959,-965.09,0.00042191,30]
[340250916,1728918660969,-500.0,0.00042191,30]
[340250917,1728918660978,-500.0,0.00042191,30]
[340250918,1728918660988,-310.53503522,0.00042191,30]
[340250919,1728918660997,-500.0,0.00042191,30]
[340250920,1728918661006,-500.0,0.00042191,30]
[340250921,1728918661016,-500.0,0.00042191,30]
[340250922,1728918661025,-500.0,0.00042191,30]
[340250923,1728918661034,-500.0,0.00042191,30]
[340250924,1728918661043,-500.0,0.00042191,30]
[340250925,1728918661052,-520.54,0.00042191,30]
[340250926,1728918661064,-500.0,0.00042191,30]
[340250927,1728918661075,-534.39351618,0.00042191,30]
[340250928,1728918661084,-527.94,0.00042191,30]
[340250929,1728918661094,-500.0,0.00042191,30]
[340250930,1728918661106,-500.0,0.00042191,30]
[340250931,1728918661116,-500.0,0.00042191,30]
[340250932,1728918661126,-500.0,0.00042191,30]
[340250933,1728918661137,-500.0,0.00042191,30]
[340250934,1728918661148,-584.39,0.00042191,30]
[340250935,1728918661157,-378.13046895,0.00042191,30]
[340250936,1728918661167,-500.0,0.00042191,30]
[340250937,1728918661178,-487.2363206,0.00042191,30]
[340250938,1728918661187,-447.46950015,0.00042191,30]
[340250939,1728918661197,-500.0,0.00042191,30]
[340250940,1728918661206,-500.0,0.00042191,30]
[340250941,1728918661217,-500.0,0.00042191,30]
[340250942,1728918661227,-551.66448545,0.00042191,30]
[340250943,1728918661237,-500.0,0.00042191,30]
[340250944,1728918661247,-1432.61,0.00042191,30]
[340250945,1728918661257,-500.0,0.00042191,30]
[340250946,1728918661266,-500.0,0.00042191,30]
[340250947,1728918661276,-500.0,0.00042191,30]
[340250948,1728918661286,-636.67737404,0.00042191,30]
[340250949,1728918661296,-500.0,0.00042191,30]
[340250950,1728918661305,-1034.0,0.00042191,30]
[340250951,1728918661316,-500.0,0.00042191,30]
[340250952,1728918661326,-585.02,0.00042191,30]
[340250953,1728918661335,-500.0,0.00042191,30]
[340250954,1728918661345,-563.48,0.00042191,30]
[340250955,1728918661355,-1463.67,0.00042191,30]
[340250956,1728918661364,-976.8,0.00042191,30]
[340250957,1728918661374,-500.0,0.00042191,30]
[340250958,1728918661383,-500.0,0.00042191,30]
[340250959,1728918661393,-1452.78,0.00042191,30]
[340250960,1728918661402,-500.0,0.00042191,30]
[340250961,1728918661412,-500.0,0.00042191,30]
[340250962,1728918661422,-500.0,0.00042191,30]
[340250963,1728918661433,-500.0,0.00042191,30]
[340250964,1728918661443,-500.0,0.00042191,30]
[340250965,1728918661452,-500.0,0.00042191,30]
[340250966,1728918661462,-500.0,0.00042191,30]
[340250967,1728918661471,-500.0,0.00042191,30]
[340250968,1728918661544,-500.0,0.00042191,30]
[340250969,1728918661554,-500.0,0.00042191,30]
[340250970,1728918661565,-517.75859623,0.00042191,30]
[340250971,1728918661576,-666.12,0.00042191,30]
[340250972,1728918661586,-500.0,0.00042191,30]
[340250973,1728918661597,-500.0,0.00042191,30]
[340250974,1728918661606,-500.0,0.00042191,30]
[340250975,1728918661616,-500.0,0.00042191,30]
[340250976,1728918661625,-635.51,0.00042191,30]
[340250977,1728918661635,-511.56245372,0.00042191,30]
[340250978,1728918661645,-524.69142745,0.00042191,30]
[340250979,1728918661654,-500.0,0.00042191,30]
[340250980,1728918661664,-500.0,0.00042191,30]
[340250981,1728918661673,-500.0,0.00042191,30]
[340250982,1728918661683,-533.76,0.00042191,30]
[340250983,1728918661692,-500.0,0.00042191,30]
[340250984,1728918661701,-179.47354761,0.00042191,30]
[340250985,1728918661710,-500.0,0.00042191,30]
[340250986,1728918661720,-500.0,0.00042191,30]
[340250987,1728918661729,-544.68,0.00042191,30]
[340250988,1728918661739,-500.0,0.00042191,30]
[340250989,1728918661749,-500.0,0.00042191,30]
[340250990,1728918661759,-500.0,0.00042191,30]
[340250991,1728918661768,-200.9549696,0.00042191,30]
[340250992,1728918661777,-500.0,0.00042191,30]
[340250993,1728918661787,-500.0,0.00042191,30]
[340250994,1728918661796,-500.0,0.00042191,30]
[340250995,1728918661805,-500.0,0.00042191,30]
[340250996,1728918661814,-500.0,0.00042191,30]
[340250997,1728918661823,-500.0,0.00042191,30]
[340250998,1728918661832,-500.0,0.00042191,30]
[340250999,1728918661841,-500.0,0.00042191,30]
[340251000,1728918661851,-638.3,0.00042191,30]
[340251001,1728918661860,-500.0,0.00042191,30]
[340251002,1728918661870,-221.5075836,0.00042191,30]
[340251003,1728918661879,-507.92,0.00042191,30]
[340251004,1728918661889,-157.06720436,0.00042191,30]
[340251005,1728918661899,-500.0,0.00042191,30]
[340251006,1728918661909,-570.64,0.00042191,30]
[340251007,1728918661918,-538.16118297,0.00042191,30]
[340251008,1728918661928,-443.40112457,0.00042191,30]
[340251009,1728918661938,-604.1,0.00042191,30]
[340251010,1728918661948,-534.23730645,0.00042191,30]
[340251011,1728918661957,-500.0,0.00042191,30]
[340251012,1728918661968,-708.07,0.00042191,30]
[340251013,1728918661978,-545.53136554,0.00042191,30]
[340251014,1728918661988,-500.0,0.00042191,30]
[340251015,1728918661998,-1192.97,0.00042191,30]
[340251016,1728918662007,-500.0,0.00042191,30]
[340251017,1728918662016,-500.0,0.00042191,30]
[340251018,1728918662025,-509.85,0.00042191,30]
[340251019,1728918662035,-500.0,0.00042191,30]
[340251020,1728918662045,-786.91,0.00042191,30]
[340251021,1728918662054,-500.0,0.00042191,30]
[340251022,1728918662068,-500.0,0.00042191,30]
[340251023,1728918662078,-500.0,0.00042191,30]
[340251024,1728918662088,-500.0,0.00042191,30]
[340251025,1728918662098,-305.25845853,0.00042191,30]
[340251026,1728918662111,-194.64988015,0.00042191,30]
[340251027,1728918662121,-500.0,0.00042191,30]
[340251028,1728918662132,-742.44,0.00042191,30]
[340251029,1728918662144,-500.0,0.00042191,30]
[340251030,1728918662154,-500.0,0.00042191,30]
[340251031,1728918662164,-500.0,0.00042191,30]
[340251032,1728918662174,-500.0,0.00042191,30]
[340251033,1728918662185,-500.0,0.00042191,30]
[340251034,1728918662195,-715.35,0.00042191,30]
[340251035,1728918662204,-500.0,0.00042191,30]
[340251036,1728918662214,-500.0,0.00042191,30]
[340251037,1728918662223,-512.19,0.00042191,30]
[340251038,1728918662233,-500.0,0.00042191,30]
[340251039,1728918662242,-542.03,0.00042191,30]
[340251040,1728918662251,-734.61,0.00042191,30]
[340251041,1728918662260,-500.0,0.00042191,30]
[340251042,1728918662270,-500.0,0.00042191,30]
[340251043,1728918662279,-191.97995668,0.00042191,30]
[340251044,1728918662288,-500.0,0.00042191,30]
[340251045,1728918662298,-528.39,0.00042191,30]
[340251046,1728918662308,-606.71,0.00042191,30]
[340251047,1728918662318,-500.0,0.00042191,30]
[340251048,1728918662328,-500.0,0.00042191,30]
[340251049,1728918662338,-500.0,0.00042191,30]
[340251050,1728918662348,-500.0,0.00042191,30]
[340251051,1728918662357,-500.0,0.00042191,30]
[340251052,1728918662367,-500.0,0.00042191,30]
[340251053,1728918662377,-500.0,0.00042191,30]
[340251054,1728918662386,-500.0,0.00042191,30]
[340251055,1728918662395,-500.0,0.00042191,30]
[340251056,1728918662405,-151.0,0.00042191,120]
[340251057,1728918662415,-500.0,0.00042191,30]
[340251058,1728918662424,-643.7621822,0.00042191,30]
[340251059,1728918662440,-500.0,0.00042191,30]
[340251060,1728918662450,-500.0,0.00042191,30]
[340251061,1728918662459,-205.660718,0.00042191,120]
[340251062,1728918662468,-500.0,0.00042191,30]
[340251063,1728918662478,-500.0,0.00042191,30]
[340251064,1728918662487,-500.0,0.00042191,30]
[340251065,1728918662497,-684.06,0.00042191,30]
[340251066,1728918662506,-205.660722,0.00042191,120]
[340251067,1728918662515,-156.1,0.00042412,31]
[340251068,1728918662524,-1364.12,0.00042415,3]
[340251069,1728918662533,-25215.10613779,0.00042465,32]
[340251070,1728918662543,-500.0,0.00042465,30]
[340251071,1728918662552,-524.27057895,0.00042465,30]
[340251072,1728918662562,-500.0,0.00042465,30]
[340251073,1728918662571,-604.97,0.00042465,30]
[340251074,1728918662580,-500.0,0.00042465,30]
[340251075,1728918662589,-500.0,0.00042465,30]
[340251076,1728918662598,-518.77,0.00042465,30]
[340251077,1728918662608,-598.59,0.00042465,30]
[340251078,1728918662617,-500.0,0.00042465,30]
[340251079,1728918662626,-578.23,0.00042465,30]
[340251080,1728918662636,-500.0,0.00042465,30]
[340251081,1728918662645,-530.58,0.00042465,30]
[340251082,1728918662654,-500.0,0.00042465,30]
[340251083,1728918662664,-965.09,0.00042465,30]
[340251084,1728918662674,-500.0,0.00042465,30]
[340251085,1728918662685,-546.49009826,0.00042465,30]
[340251086,1728918662695,-500.0,0.00042465,30]
[340251087,1728918662704,-500.0,0.00042465,30]
[340251088,1728918662714,-500.0,0.00042465,30]
[340251089,1728918662723,-500.0,0.00042465,30]
[340251090,1728918662732,-293.54586976,0.00042465,30]
[340251091,1728918662741,-500.0,0.00042465,30]
[340251092,1728918662750,-520.54,0.00042465,30]
[340251093,1728918662759,-500.0,0.00042465,30]
[340251094,1728918662768,-527.94,0.00042465,30]
[340251095,1728918662778,-340.35647848,0.00042465,30]
[340251096,1728918662787,-500.0,0.00042465,30]
[340251097,1728918662797,-500.0,0.00042465,30]
[340251098,1728918662806,-500.0,0.00042465,30]
[340251099,1728918662815,-500.0,0.00042465,30]
[340251100,1728918662824,-584.39,0.00042465,30]
[340251101,1728918662833,-500.0,0.00042465,30]
[340251102,1728918662843,-500.0,0.00042465,30]
[340251103,1728918662852,-500.0,0.00042465,30]
[340251104,1728918662862,-636.61853927,0.00042465,30]
[340251105,1728918662871,-171.99592191,0.00042465,30]
[340251106,1728918662881,-1432.61,0.00042465,30]
[340251107,1728918662891,-500.0,0.00042465,30]
[340251108,1728918662900,-500.0,0.00042465,30]
[340251109,1728918662910,-500.0,0.00042465,30]
[340251110,1728918662919,-500.0,0.00042465,30]
[340251111,1728918662929,-1034.0,0.00042465,30]
[340251112,1728918662939,-500.0,0.00042465,30]
[340251113,1728918662948,-585.02,0.00042465,30]
[340251114,1728918662958,-500.0,0.00042465,30]
[340251115,1728918662967,-563.48,0.00042465,30]
[340251116,1728918663041,-1463.67,0.00042465,30]
[340251117,1728918663051,-976.8,0.00042465,30]
[340251118,1728918663064,-500.0,0.00042465,30]
[340251119,1728918663078,-500.0,0.00042465,30]
[340251120,1728918663088,-1452.78,0.00042465,30]
[340251121,1728918663098,-500.0,0.00042465,30]
[340251122,1728918663109,-500.0,0.00042465,30]
[340251123,1728918663118,-400.73868423,0.00042465,30]
[340251124,1728918663128,-500.0,0.00042465,30]
[340251125,1728918663137,-500.0,0.00042465,30]
[340251126,1728918663148,-302.03276981,0.00042465,30]
[340251127,1728918663158,-572.16527087,0.00042465,30]
[340251128,1728918663167,-500.0,0.00042465,30]
[340251129,1728918663178,-500.0,0.00042465,30]
[340251130,1728918663187,-500.0,0.00042465,30]
[340251131,1728918663197,-666.12,0.00042465,30]
[340251132,1728918663207,-500.0,0.00042465,30]
[340251133,1728918663217,-500.0,0.00042465,30]
[340251134,1728918663226,-500.0,0.00042465,30]
[340251135,1728918663237,-500.0,0.00042465,30]
[340251136,1728918663247,-635.51,0.00042465,30]
[340251137,1728918663257,-500.0,0.00042465,30]
[340251138,1728918663267,-500.0,0.00042465,30]
[340251139,1728918663277,-500.0,0.00042465,30]
[340251140,1728918663287,-533.76,0.00042465,30]
[340251141,1728918663296,-515.93578111,0.00042465,30]
[340251142,1728918663305,-500.0,0.00042465,30]
[340251143,1728918663315,-500.0,0.00042465,30]
[340251144,1728918663325,-544.68,0.00042465,30]
[340251145,1728918663336,-314.87893146,0.00042465,30]
[340251146,1728918663345,-500.0,0.00042465,30]
[340251147,1728918663355,-500.0,0.00042465,30]
[340251148,1728918663364,-500.0,0.00042465,30]
[340251149,1728918663375,-539.43922821,0.00042465,30]
[340251150,1728918663386,-500.0,0.00042465,30]
[340251151,1728918663395,-500.0,0.00042465,30]
[340251152,1728918663406,-500.0,0.00042465,30]
[340251153,1728918663416,-500.0,0.00042465,30]
[340251154,1728918663425,-500.0,0.00042465,30]
[340251155,1728918663436,-539.10984096,0.00042465,30]
[340251156,1728918663446,-500.0,0.00042465,30]
[340251157,1728918663455,-507.92,0.00042465,30]
[340251158,1728918663465,-500.0,0.00042465,30]
[340251159,1728918663475,-570.64,0.00042465,30]
[340251160,1728918663486,-604.1,0.00042465,30]
[340251161,1728918663497,-500.0,0.00042465,30]
[340251162,1728918663507,-708.07,0.00042465,30]
[340251163,1728918663517,-500.0,0.00042465,30]
[340251164,1728918663526,-1192.97,0.00042465,30]
[340251165,1728918663535,-500.0,0.00042465,30]
[340251166,1728918663545,-500.0,0.00042465,30]
[340251167,1728918663554,-509.85,0.00042465,30]
[340251168,1728918663564,-500.0,0.00042465,30]
[340251169,1728918663574,-786.91,0.00042465,30]
[340251170,1728918663584,-500.0,0.00042465,30]
[340251171,1728918663594,-500.0,0.00042465,30]
[340251172,1728918663604,-500.0,0.00042465,30]
[340251173,1728918663614,-742.44,0.00042465,30]
[340251174,1728918663623,-500.0,0.00042465,30]
[340251175,1728918663633,-500.0,0.00042465,30]
[340251176,1728918663643,-500.0,0.00042465,30]
[340251177,1728918663652,-500.0,0.00042465,30]
[340251178,1728918663662,-500.0,0.00042465,30]
[340251179,1728918663672,-715.35,0.00042465,30]
[340251180,1728918663682,-500.0,0.00042465,30]
[340251181,1728918663692,-612.22121759,0.00042465,30]
[340251182,1728918663701,-512.19,0.00042465,30]
[340251183,1728918663711,-500.0,0.00042465,30]
[340251184,1728918663721,-542.03,0.00042465,30]
[340251185,1728918663730,-734.61,0.00042465,30]
[340251186,1728918663739,-500.0,0.00042465,30]
[340251187,1728918663749,-526.22684292,0.00042465,30]
[340251188,1728918663758,-500.0,0.00042465,30]
[340251189,1728918663768,-528.39,0.00042465,30]
[340251190,1728918663778,-606.71,0.00042465,30]
[340251191,1728918663787,-500.0,0.00042465,30]
[340251192,1728918663797,-500.0,0.00042465,30]
[340251193,1728918663806,-500.0,0.00042465,30]
[340251194,1728918663816,-500.0,0.00042465,30]
[340251195,1728918663826,-500.0,0.00042465,30]
[340251196,1728918663836,-500.0,0.00042465,30]
[340251197,1728918663846,-500.0,0.00042465,30]
[340251198,1728918663855,-505.79445778,0.00042465,30]
[340251199,1728918663864,-500.0,0.00042465,30]
[340251200,1728918663874,-500.0,0.00042465,30]
[340251201,1728918663884,-500.0,0.00042465,30]
[340251202,1728918663893,-272.69350439,0.00042465,30]
[340251203,1728918663903,-500.0,0.00042465,30]
[340251204,1728918663912,-500.0,0.00042465,30]
[340251205,1728918663922,-500.0,0.00042465,30]
[340251206,1728918663931,-684.06,0.00042465,30]
[340251207,1728918663941,-250.0,0.00042521,7]
[340251208,1728918663951,-500.0,0.00042541,10]
[340251209,1728918663960,-352.65879736,0.00042541,10]
[340251210,1728918663970,-500.0,0.00042541,7]
[340251211,1728918663979,-153.0,0.00042712,30]
[340251212,1728918663990,-500.0,0.00042739,30]
[340251213,1728918664000,-500.0,0.00042739,30]
[340251214,1728918664010,-604.97,0.00042739,30]
[340251215,1728918664020,-500.0,0.00042739,30]
[340251216,1728918664029,-500.0,0.00042739,30]
[340251217,1728918664039,-518.77,0.00042739,30]
[340251218,1728918664049,-598.59,0.00042739,30]
[340251219,1728918664059,-198.28394868,0.00042739,30]
[340251220,1728918664074,-578.23,0.00042739,30]
[340251221,1728918664084,-500.0,0.00042739,30]
[340251222,1728918664093,-500.0,0.00042739,30]
[340251223,1728918664104,-965.09,0.00042739,30]
[340251224,1728918664113,-500.0,0.00042739,30]
[340251225,1728918664123,-500.0,0.00042739,30]
[340251226,1728918664133,-500.0,0.00042739,30]
[340251227,1728918664144,-500.0,0.00042739,30]
[340251228,1728918664154,-500.0,0.00042739,30]
[340251229,1728918664163,-500.0,0.00042739,30]
[340251230,1728918664173,-520.54,0.00042739,30]
[340251231,1728918664183,-607.92262336,0.00042739,30]
[340251232,1728918664193,-527.94,0.00042739,30]
[340251233,1728918664202,-500.0,0.00042739,30]
[340251234,1728918664212,-500.0,0.00042739,30]
[340251235,1728918664221,-500.0,0.00042739,30]
[340251236,1728918664232,-500.0,0.00042739,30]
[340251237,1728918664242,-584.39,0.00042739,30]
[340251238,1728918664252,-500.0,0.00042739,30]
[340251239,1728918664263,-500.0,0.00042739,30]
[340251240,1728918664272,-500.0,0.00042739,30]
[340251241,1728918664282,-1432.61,0.00042739,30]
[340251242,1728918664292,-500.0,0.00042739,30]
[340251243,1728918664301,-500.0,0.00042739,30]
[340251244,1728918664312,-500.0,0.00042739,30]
[340251245,1728918664323,-500.0,0.00042739,30]
[340251246,1728918664332,-1034.0,0.00042739,30]
[340251247,1728918664342,-500.0,0.00042739,30]
[340251248,1728918664351,-585.02,0.00042739,30]
[340251249,1728918664362,-500.0,0.00042739,30]
[340251250,1728918664372,-563.48,0.00042739,30]
[340251251,1728918664381,-1463.67,0.00042739,30]
[340251252,1728918664452,-976.8,0.00042739,30]
[340251253,1728918664463,-354.58404783,0.00042739,30]
[340251254,1728918664473,-500.0,0.00042739,30]
[340251255,1728918664482,-1452.78,0.00042739,30]
[340251256,1728918664492,-500.0,0.00042739,30]
[340251257,1728918664502,-500.0,0.00042739,30]
[340251258,1728918664512,-500.0,0.00042739,30]
[340251259,1728918664522,-524.07304689,0.00042739,30]
[340251260,1728918664531,-500.0,0.00042739,30]
[340251261,1728918664540,-500.0,0.00042739,30]
[340251262,1728918664549,-500.0,0.00042739,30]
[340251263,1728918664559,-666.12,0.00042739,30]
[340251264,1728918664569,-187.95742293,0.00042739,30]
[340251265,1728918664578,-500.0,0.00042739,30]
[340251266,1728918664587,-500.0,0.00042739,30]
[340251267,1728918664597,-500.0,0.00042739,30]
[340251268,1728918664606,-635.51,0.00042739,30]
[340251269,1728918664616,-500.0,0.00042739,30]
[340251270,1728918664625,-500.0,0.00042739,30]
[340251271,1728918664634,-500.0,0.00042739,30]
[340251272,1728918664644,-533.76,0.00042739,30]
[340251273,1728918664653,-500.0,0.00042739,30]
[340251274,1728918664662,-361.4264585,0.00042739,30]
[340251275,1728918664671,-544.68,0.00042739,30]
[340251276,1728918664683,-184.94041674,0.00042739,30]
[340251277,1728918664693,-500.0,0.00042739,30]
[340251278,1728918664702,-500.0,0.00042739,30]
[340251279,1728918664711,-500.0,0.00042739,30]
[340251280,1728918664721,-500.0,0.00042739,30]
[340251281,1728918664730,-564.94225294,0.00042739,30]
[340251282,1728918664739,-500.0,0.00042739,30]
[340251283,1728918664748,-500.0,0.00042739,30]
[340251284,1728918664758,-500.0,0.00042739,30]
[340251285,1728918664767,-507.92,0.00042739,30]
[340251286,1728918664778,-500.0,0.00042739,30]
[340251287,1728918664787,-570.64,0.00042739,30]
[340251288,1728918664797,-604.1,0.00042739,30]
[340251289,1728918664806,-500.0,0.00042739,30]
[340251290,1728918664815,-708.07,0.00042739,30]
[340251291,1728918664824,-500.0,0.00042739,30]
[340251292,1728918664833,-1192.97,0.00042739,30]
[340251293,1728918664843,-500.0,0.00042739,30]
[340251294,1728918664852,-500.0,0.00042739,30]
[340251295,1728918664861,-509.85,0.00042739,30]
[340251296,1728918664871,-500.0,0.00042739,30]